{"text_format":"1","workbook":"xlsx","n_sheets":9,"sheets":["Between Two Dates","Daily Compound Interest","Monthly Compound Interest","VBA Macro ","FV function","FVSCHEDULE function","Regular Deposit","Interest Formula","Data"],"not_rendered":{"charts":0,"images":0,"macros":1,"external_links":0,"defined_names":20,"comments":0,"pivot_tables":0},"unopened":[],"bounds":{"document_bytes":16777216,"sheet_cells":100000,"rows_first":2000,"rows_last":500,"rows_between":2000,"halvings":0,"cell_chars":16384,"cell_head_chars":4096},"cells_cut":0,"cells_raw":0,"read":"whole","date_system":"1900"}

{"sheet":"Between Two Dates","index":0,"n_rows":10,"n_cols":3,"rows_kept":10,"cut":false,"hidden":false,"merged":[[2,1,2,2]]}
[]
[]
[null,"Compound Interest Calculation Between Two Dates"]
[]
[null,"Criteria","Amount"]
[null,"Intial Amount",20000]
[null,"Yearly Interst Rate",0.12]
[null,"Start Date","2022-10-03"]
[null,"End Date","2023-11-05"]
[null,"Compound Amount",{"$f":"C6*((1+C7/365)^(C9-C8))","v":22795.430150127664}]

{"sheet":"Daily Compound Interest","index":1,"n_rows":9,"n_cols":3,"rows_kept":9,"cut":false,"hidden":false,"merged":[[2,1,2,2]]}
[]
[]
[null,"Daily Compound Interest Calculation"]
[]
[null,"Criteria","Amount"]
[null,"Intial Amount",20000]
[null,"Yearly Interst Rate",0.12]
[null,"Time (Year)",10]
[null,"Compound Amount",{"$f":"C6*((1+C7/365)^(C8*365))","v":66389.244072716276}]

{"sheet":"Monthly Compound Interest","index":2,"n_rows":9,"n_cols":3,"rows_kept":9,"cut":false,"hidden":false,"merged":[[2,1,2,2]]}
[]
[]
[null,"Monthly Compound Interest Calculation"]
[]
[null,"Criteria","Amount"]
[null,"Intial Amount",20000]
[null,"Yearly Interst Rate",0.12]
[null,"Time (Year)",10]
[null,"Compound Amount",{"$f":"C6*((1+C7/12)^(C8*12))","v":66007.7378914734}]

{"sheet":"VBA Macro ","index":3,"n_rows":9,"n_cols":3,"rows_kept":9,"cut":false,"hidden":false,"merged":[[2,1,2,2]]}
[]
[]
[null,"Compound Interest Calculation"]
[]
[null,"Criteria","Amount"]
[null,"Intial Amount",20000]
[null,"Yearly Interst Rate",0.12]
[null,"Time (Year)",10]
[null,"Compound Amount"]

{"sheet":"FV function","index":4,"n_rows":9,"n_cols":3,"rows_kept":9,"cut":false,"hidden":false,"merged":[[2,1,2,2]]}
[]
[]
[null,"Compound Interest Calculation"]
[]
[null,"Criteria","Amount"]
[null,"Intial Amount",20000]
[null,"Yearly Interst Rate",0.12]
[null,"Time (Year)",1]
[null,"Compound Amount",{"$f":"FV(C7/4,C8*4,0,-C6)","v":22510.176199999998}]

{"sheet":"FVSCHEDULE function","index":5,"n_rows":10,"n_cols":3,"rows_kept":10,"cut":false,"hidden":false,"merged":[[2,1,2,2]]}
[]
[]
[null,"Compound Interest Calculation"]
[]
[null,"Criteria","Amount"]
[null,"Intial Amount",20000]
[null,"Yearly Interst Rate",0.12]
[null,"Quarterly Interest Rate",{"$f":"C7/4","v":0.03}]
[null,"Time (Year)",1]
[null,"Compound Amount",{"$f":"FVSCHEDULE(C6,{0.03,0.03,0.03,0.03})","v":22510.176200000002}]

{"sheet":"Regular Deposit","index":6,"n_rows":14,"n_cols":8,"rows_kept":14,"cut":false,"hidden":false,"merged":[[2,1,2,7]]}
[]
[]
[null,"Compound Interest Calculation"]
[]
[null,"Deposit Period"," Deposit Amount","Initial Amount","Final Amount ",null,"Initial Amount",10000]
[null,1,100,10000,{"$f":"D6+D6*($H$6/12)","v":10100},null,"Interest Rate",0.12]
[null,2,100,{"$f":"E6+C7","v":10200},10302,null,"Regular Deposit",100]
[null,3,100,{"$f":"E7+C8","v":10402},10506.02]
[null,4,100,10606.02,10712.0802]
[null,5,100,10812.0802,10920.201002]
[null,6,100,11020.201002,11130.40301202]
[null,7,100,11230.40301202,11342.7070421402]
[null,8,100,11442.7070421402,11557.134112561602]
[null,9,100,11657.134112561602,11773.705453687218]

{"sheet":"Interest Formula","index":7,"n_rows":9,"n_cols":3,"rows_kept":9,"cut":false,"hidden":false,"merged":[[2,1,2,2]]}
[]
[]
[null,"Compound Interest Calculation"]
[]
[null,"Criteria","Amount"]
[null,"Intial Amount",20000]
[null,"Yearly Interst Rate",0.12]
[null,"Time (Year)",10]
[null,"Compound Amount",{"$f":"C6*((1+C7/4)^(C8*4))","v":65240.755839981437}]

{"sheet":"Data","index":8,"n_rows":9,"n_cols":3,"rows_kept":9,"cut":false,"hidden":false,"merged":[[2,1,2,2]]}
[]
[]
[null,"Compound Interest Calculation"]
[]
[null,"Criteria","Amount"]
[null,"Intial Amount",20000]
[null,"Yearly Interst Rate",0.12]
[null,"Time (Year)",10]
[null,"Compound Amount"]